[Event "Early-Titled-Tuesday-Blitz-February-20-2024"]
[Site "Chess.com"]
[Date "2024.02.20"]
[Round "9"]
[White "FARIZA2018"]
[Black "Kirill_Klukin"]
[Result "0-1"]
[WhiteElo "2598"]
[BlackElo "2848"]
[TimeControl "180+1"]
[EndTime "9:47:25 PST"]
[Termination "Kirill_Klukin won on time"]

1. e4 {[%clk 0:03:00.9]} 1... c5 {[%clk 0:02:59.2]} 2. Nf3 {[%clk 0:03:01]} 2...
Nc6 {[%clk 0:02:58.8]} 3. d4 {[%clk 0:03:01.3]} 3... cxd4 {[%clk 0:02:59.1]} 4.
Nxd4 {[%clk 0:03:01.9]} 4... e5 {[%clk 0:02:59.9]} 5. Nb5 {[%clk 0:03:01.9]}
5... d6 {[%clk 0:03:00]} 6. c4 {[%clk 0:03:01.1]} 6... Be7 {[%clk 0:03:00]} 7.
Be2 {[%clk 0:02:56.6]} 7... Be6 {[%clk 0:02:57.7]} 8. O-O {[%clk 0:02:53.2]}
8... Nf6 {[%clk 0:02:51.7]} 9. N1c3 {[%clk 0:02:52.7]} 9... a6 {[%clk
0:02:51.6]} 10. Na3 {[%clk 0:02:52.9]} 10... O-O {[%clk 0:02:52.4]} 11. Be3
{[%clk 0:02:51.5]} 11... Rc8 {[%clk 0:02:44.6]} 12. Rc1 {[%clk 0:02:50.3]} 12...
Nd7 {[%clk 0:02:44.1]} 13. Nd5 {[%clk 0:02:40.8]} 13... Bg5 {[%clk 0:02:42.2]}
14. Nc2 {[%clk 0:02:30.6]} 14... Bxe3 {[%clk 0:02:42]} 15. Ncxe3 {[%clk
0:02:30.6]} 15... Nd4 {[%clk 0:02:41.9]} 16. Bd3 {[%clk 0:02:22]} 16... Nc5
{[%clk 0:02:39.2]} 17. Nc2 {[%clk 0:02:14.8]} 17... Bxd5 {[%clk 0:02:34.1]} 18.
cxd5 {[%clk 0:02:09.7]} 18... Nxc2 {[%clk 0:02:33.1]} 19. Rxc2 {[%clk
0:02:09.4]} 19... Qb6 {[%clk 0:02:26.9]} 20. Qe2 {[%clk 0:02:06.7]} 20... Rc7
{[%clk 0:02:25]} 21. Rfc1 {[%clk 0:02:06.2]} 21... Rfc8 {[%clk 0:02:25.6]} 22.
g3 {[%clk 0:01:55]} 22... g6 {[%clk 0:02:18.7]} 23. Kg2 {[%clk 0:01:53.6]} 23...
Kg7 {[%clk 0:02:10.2]} 24. Qe3 {[%clk 0:01:29.6]} 24... a5 {[%clk 0:02:00.6]}
25. a3 {[%clk 0:01:20.7]} 25... Qb3 {[%clk 0:01:57.2]} 26. Rd2 {[%clk
0:00:45.2]} 26... Nxd3 {[%clk 0:01:34.8]} 27. Rxc7 {[%clk 0:00:45.1]} 27... Ne1+
{[%clk 0:01:27.8]} 28. Qxe1 {[%clk 0:00:38.5]} 28... Rxc7 {[%clk 0:01:28]} 29.
Qe2 {[%clk 0:00:33.2]} 29... a4 {[%clk 0:01:17.8]} 30. Rd3 {[%clk 0:00:26.8]}
30... Qc4 {[%clk 0:00:45]} 31. Re3 {[%clk 0:00:18.1]} 31... Qc1 {[%clk
0:00:42.6]} 32. Qb5 {[%clk 0:00:17.6]} 32... Qd1 {[%clk 0:00:26.2]} 33. Qf1
{[%clk 0:00:10.5]} 33... Qd4 {[%clk 0:00:22]} 34. Qb5 {[%clk 0:00:08.2]} 34...
Rc2 {[%clk 0:00:20.5]} 35. Re2 {[%clk 0:00:08.5]} 35... Rc1 {[%clk 0:00:17.8]}
36. Re3 {[%clk 0:00:05.6]} 36... Qd1 {[%clk 0:00:17.6]} 37. h4 {[%clk
0:00:03.2]} 37... h5 {[%clk 0:00:17.8]} 0-1

[Event "Early-Titled-Tuesday-Blitz-February-20-2024"]
[Site "Chess.com"]
[Date "2024.02.20"]
[Round "9"]
[White "jaskol95"]
[Black "Rud_2008"]
[Result "1-0"]
[WhiteElo "2601"]
[BlackElo "2719"]
[TimeControl "180+1"]
[EndTime "9:47:26 PST"]
[Termination "jaskol95 won by resignation"]

1. d4 {[%clk 0:03:00.9]} 1... Nf6 {[%clk 0:02:57.5]} 2. Nc3 {[%clk 0:03:00.7]}
2... d5 {[%clk 0:02:57.5]} 3. Bf4 {[%clk 0:03:00.4]} 3... e6 {[%clk 0:02:57.7]}
4. Nb5 {[%clk 0:03:00.1]} 4... Na6 {[%clk 0:02:56.7]} 5. e3 {[%clk 0:02:59.6]}
5... c6 {[%clk 0:02:53.8]} 6. Nc3 {[%clk 0:02:59.8]} 6... Qb6 {[%clk 0:02:54.1]}
7. Rb1 {[%clk 0:02:53.2]} 7... Bd7 {[%clk 0:02:53.8]} 8. Nf3 {[%clk 0:02:52.8]}
8... Be7 {[%clk 0:02:47.9]} 9. a3 {[%clk 0:02:50.4]} 9... O-O {[%clk 0:02:47.7]}
10. Bd3 {[%clk 0:02:50.2]} 10... c5 {[%clk 0:02:45.9]} 11. O-O {[%clk
0:02:50.2]} 11... Rac8 {[%clk 0:02:44.6]} 12. Ne5 {[%clk 0:02:42.6]} 12... Be8
{[%clk 0:02:44.5]} 13. Re1 {[%clk 0:02:12.1]} 13... Nb8 {[%clk 0:02:39.9]} 14.
Na2 {[%clk 0:01:56.7]} 14... Nc6 {[%clk 0:02:34.1]} 15. c3 {[%clk 0:01:56.4]}
15... Nxe5 {[%clk 0:02:27.1]} 16. Bxe5 {[%clk 0:01:56.4]} 16... Nd7 {[%clk
0:02:24.3]} 17. Bg3 {[%clk 0:01:43.7]} 17... Bd6 {[%clk 0:02:15.8]} 18. Bxd6
{[%clk 0:01:30.7]} 18... Qxd6 {[%clk 0:02:16.7]} 19. Nc1 {[%clk 0:01:11.8]}
19... e5 {[%clk 0:02:12.1]} 20. Ne2 {[%clk 0:01:12.3]} 20... e4 {[%clk
0:02:11.4]} 21. Bc2 {[%clk 0:01:12.7]} 21... c4 {[%clk 0:02:09.2]} 22. Nf4
{[%clk 0:01:07.9]} 22... Nf6 {[%clk 0:02:09]} 23. f3 {[%clk 0:01:05.3]} 23...
Bd7 {[%clk 0:02:06.3]} 24. fxe4 {[%clk 0:01:04]} 24... dxe4 {[%clk 0:02:07.2]}
25. Rf1 {[%clk 0:01:02]} 25... Rfe8 {[%clk 0:02:06.4]} 26. Qe1 {[%clk
0:01:00.6]} 26... Nd5 {[%clk 0:02:05.3]} 27. Qg3 {[%clk 0:00:37.1]} 27... Nxf4
{[%clk 0:01:59.9]} 28. Rxf4 {[%clk 0:00:32.7]} 28... f5 {[%clk 0:02:00.1]} 29.
h4 {[%clk 0:00:29.5]} 29... Qg6 {[%clk 0:01:57.8]} 30. Qxg6 {[%clk 0:00:28.1]}
30... hxg6 {[%clk 0:01:58.7]} 31. g4 {[%clk 0:00:20.8]} 31... fxg4 {[%clk
0:01:51.3]} 32. Rxe4 {[%clk 0:00:18.3]} 32... Bf5 {[%clk 0:01:45.4]} 33. Rxe8+
{[%clk 0:00:18.2]} 33... Rxe8 {[%clk 0:01:46.2]} 34. Bxf5 {[%clk 0:00:03.7]}
34... gxf5 {[%clk 0:01:47.1]} 35. Kf2 {[%clk 0:00:04.1]} 35... Kf7 {[%clk
0:01:45.7]} 36. b3 {[%clk 0:00:04.7]} 36... Rc8 {[%clk 0:01:43.5]} 37. bxc4
{[%clk 0:00:04.7]} 37... Rxc4 {[%clk 0:01:42.1]} 38. Rxb7+ {[%clk 0:00:05]}
38... Kg6 {[%clk 0:01:41.8]} 39. Rb3 {[%clk 0:00:05.6]} 39... a5 {[%clk
0:01:33.2]} 40. Ke2 {[%clk 0:00:05.6]} 40... a4 {[%clk 0:01:31.3]} 41. Rb6+
{[%clk 0:00:05.6]} 41... Kh5 {[%clk 0:01:30.1]} 42. Kd3 {[%clk 0:00:06.1]} 42...
Rc7 {[%clk 0:01:27.7]} 43. c4 {[%clk 0:00:04.1]} 43... Kxh4 {[%clk 0:01:23.7]}
44. c5 {[%clk 0:00:04.3]} 44... Kh3 {[%clk 0:01:19.7]} 45. Rb1 {[%clk
0:00:04.5]} 45... g3 {[%clk 0:01:19]} 46. Kc4 {[%clk 0:00:04.7]} 46... g5 {[%clk
0:01:17.5]} 47. d5 {[%clk 0:00:04.5]} 47... f4 {[%clk 0:01:17.5]} 48. exf4
{[%clk 0:00:04.6]} 48... gxf4 {[%clk 0:01:18.4]} 49. d6 {[%clk 0:00:05.2]} 49...
Rf7 {[%clk 0:01:15.9]} 50. c6 {[%clk 0:00:05.3]} 50... f3 {[%clk 0:01:16.5]} 51.
c7 {[%clk 0:00:05.5]} 51... Rf8 {[%clk 0:01:16.1]} 52. d7 {[%clk 0:00:06]} 52...
Rf5 {[%clk 0:00:54.8]} 53. c8=Q {[%clk 0:00:06.3]} 53... f2 {[%clk 0:00:54.7]}
54. d8=Q {[%clk 0:00:06.6]} 54... Kg4 {[%clk 0:00:53.3]} 55. Qxf5+ {[%clk
0:00:06.3]} 55... Kxf5 {[%clk 0:00:53.4]} 56. Qd5+ {[%clk 0:00:06.6]} 56... Kf4
{[%clk 0:00:54.3]} 57. Qd4+ {[%clk 0:00:06.9]} 57... Kf3 {[%clk 0:00:55]} 58.
Kd3 {[%clk 0:00:06.9]} 58... g2 {[%clk 0:00:54.2]} 59. Qe3+ {[%clk 0:00:07.4]}
59... Kg4 {[%clk 0:00:54.1]} 60. Qxf2 {[%clk 0:00:07.1]} 60... Kg5 {[%clk
0:00:54.3]} 61. Qxg2+ {[%clk 0:00:07.6]} 61... Kf5 {[%clk 0:00:55.2]} 62. Qe4+
{[%clk 0:00:07.8]} 1-0

[Event "Early-Titled-Tuesday-Blitz-February-20-2024"]
[Site "Chess.com"]
[Date "2024.02.20"]
[Round "9"]
[White "Bigfish1995"]
[Black "Njal28"]
[Result "1-0"]
[WhiteElo "3181"]
[BlackElo "2992"]
[TimeControl "180+1"]
[EndTime "9:47:28 PST"]
[Termination "Bigfish1995 won by resignation"]

1. e4 {[%clk 0:02:42.7]} 1... e5 {[%clk 0:02:58.6]} 2. Nf3 {[%clk 0:02:42.9]}
2... Nc6 {[%clk 0:02:59]} 3. Bb5 {[%clk 0:02:42.6]} 3... a6 {[%clk 0:02:59.1]}
4. Ba4 {[%clk 0:02:42.8]} 4... d6 {[%clk 0:02:59]} 5. c3 {[%clk 0:02:38.9]} 5...
Bd7 {[%clk 0:02:58.6]} 6. O-O {[%clk 0:02:38.5]} 6... Nge7 {[%clk 0:02:59.1]} 7.
d4 {[%clk 0:02:37.9]} 7... Ng6 {[%clk 0:02:59.8]} 8. Bc2 {[%clk 0:02:37.4]} 8...
Be7 {[%clk 0:02:58.8]} 9. a4 {[%clk 0:02:36.1]} 9... O-O {[%clk 0:02:58.2]} 10.
d5 {[%clk 0:02:35.8]} 10... Nb8 {[%clk 0:02:57]} 11. a5 {[%clk 0:02:35.5]} 11...
Qc8 {[%clk 0:02:48.4]} 12. c4 {[%clk 0:02:33.4]} 12... f5 {[%clk 0:02:48.6]} 13.
exf5 {[%clk 0:02:29.6]} 13... Bxf5 {[%clk 0:02:49.5]} 14. Ra3 {[%clk 0:02:27.1]}
14... Nd7 {[%clk 0:02:42.8]} 15. Bxf5 {[%clk 0:02:24.1]} 15... Rxf5 {[%clk
0:02:43.7]} 16. Nc3 {[%clk 0:02:23.1]} 16... Qf8 {[%clk 0:02:38.1]} 17. Ne4
{[%clk 0:02:20.8]} 17... h6 {[%clk 0:02:21.8]} 18. Be3 {[%clk 0:02:07]} 18...
Nf4 {[%clk 0:02:20.5]} 19. Bxf4 {[%clk 0:02:01.5]} 19... Rxf4 {[%clk 0:02:17.3]}
20. Nfd2 {[%clk 0:02:00.9]} 20... Qf7 {[%clk 0:02:11.1]} 21. Qe2 {[%clk
0:01:56]} 21... Rf8 {[%clk 0:02:09.5]} 22. Rb3 {[%clk 0:01:52.9]} 22... b6
{[%clk 0:02:02.9]} 23. Ra3 {[%clk 0:01:43.3]} 23... Nc5 {[%clk 0:01:34.5]} 24.
axb6 {[%clk 0:01:38.1]} 24... cxb6 {[%clk 0:01:35.4]} 25. g3 {[%clk 0:01:29.2]}
25... Qg6 {[%clk 0:01:29.1]} 26. Nxc5 {[%clk 0:01:06.7]} 26... bxc5 {[%clk
0:01:30]} 27. Rxa6 {[%clk 0:01:06.4]} 27... Rd4 {[%clk 0:01:08.9]} 28. Nb3
{[%clk 0:01:04.6]} 28... Re4 {[%clk 0:01:09.3]} 29. Qc2 {[%clk 0:01:02.4]} 29...
Qg4 {[%clk 0:01:04.9]} 30. Nd2 {[%clk 0:00:39.7]} 30... Re2 {[%clk 0:00:56.6]}
31. Qd1 {[%clk 0:00:39.6]} 31... e4 {[%clk 0:00:40.7]} 32. h3 {[%clk 0:00:36.9]}
32... Qh5 {[%clk 0:00:29.9]} 33. g4 {[%clk 0:00:29.7]} 33... Qxh3 {[%clk
0:00:30.3]} 34. Qxe2 {[%clk 0:00:29.8]} 34... Rf4 {[%clk 0:00:31]} 35. f3 {[%clk
0:00:24]} 35... exf3 {[%clk 0:00:27.8]} 36. Qe6+ {[%clk 0:00:23.3]} 36... Kh7
{[%clk 0:00:24.6]} 37. Rxf3 {[%clk 0:00:23.1]} 37... Rxg4+ {[%clk 0:00:18.2]}
38. Kf2 {[%clk 0:00:23.1]} 38... Qh2+ {[%clk 0:00:06.2]} 39. Ke1 {[%clk
0:00:21.2]} 39... Rg1+ {[%clk 0:00:05.9]} 40. Nf1 {[%clk 0:00:20.5]} 40... Bh4+
{[%clk 0:00:05.3]} 41. Kd1 {[%clk 0:00:20.7]} 41... Qh1 {[%clk 0:00:01.8]} 42.
Qf5+ {[%clk 0:00:18.8]} 42... Rg6 {[%clk 0:00:02.3]} 43. Rxd6 {[%clk 0:00:18.2]}
43... Bf6 {[%clk 0:00:02.4]} 44. Rxf6 {[%clk 0:00:17.2]} 44... gxf6 {[%clk
0:00:03.3]} 45. Rg3 {[%clk 0:00:17.3]} 1-0

[Event "Early-Titled-Tuesday-Blitz-February-20-2024"]
[Site "Chess.com"]
[Date "2024.02.20"]
[Round "9"]
[White "Yan_Dyomin2010"]
[Black "ketster"]
[Result "0-1"]
[WhiteElo "2719"]
[BlackElo "2600"]
[TimeControl "180+1"]
[EndTime "9:47:31 PST"]
[Termination "ketster won by resignation"]

1. e4 {[%clk 0:03:00]} 1... c5 {[%clk 0:02:57.7]} 2. Nf3 {[%clk 0:02:56.5]} 2...
Nf6 {[%clk 0:02:57.5]} 3. e5 {[%clk 0:02:52.7]} 3... Nd5 {[%clk 0:02:55.3]} 4.
Nc3 {[%clk 0:02:47.4]} 4... e6 {[%clk 0:02:54.4]} 5. Nxd5 {[%clk 0:02:47.1]}
5... exd5 {[%clk 0:02:55.3]} 6. d4 {[%clk 0:02:46.5]} 6... Nc6 {[%clk
0:02:50.6]} 7. dxc5 {[%clk 0:02:44.6]} 7... Bxc5 {[%clk 0:02:51.5]} 8. Qxd5
{[%clk 0:02:44.9]} 8... Qb6 {[%clk 0:02:50.8]} 9. Bc4 {[%clk 0:02:44.8]} 9...
Bxf2+ {[%clk 0:02:47.5]} 10. Ke2 {[%clk 0:02:38]} 10... O-O {[%clk 0:02:40.7]}
11. Rf1 {[%clk 0:02:36.8]} 11... Bc5 {[%clk 0:02:38.6]} 12. Kd1 {[%clk 0:02:20]}
12... d6 {[%clk 0:02:34]} 13. Ng5 {[%clk 0:02:09.7]} 13... Bg4+ {[%clk
0:02:20.5]} 14. Ke1 {[%clk 0:02:05.8]} 14... Nxe5 {[%clk 0:01:49.1]} 15. Nxf7
{[%clk 0:02:00.6]} 15... Qb4+ {[%clk 0:01:17.8]} 16. c3 {[%clk 0:01:22.5]} 16...
Qxc4 {[%clk 0:01:15]} 17. Nh6+ {[%clk 0:01:21.5]} 17... Kh8 {[%clk 0:01:12.9]}
18. Qxc4 {[%clk 0:01:19.8]} 18... Nxc4 {[%clk 0:01:12.7]} 19. Rxf8+ {[%clk
0:01:17.9]} 19... Rxf8 {[%clk 0:01:13.6]} 20. Nxg4 {[%clk 0:01:18.8]} 20... h5
{[%clk 0:01:09]} 21. b3 {[%clk 0:01:14.7]} 21... hxg4 {[%clk 0:01:04.2]} 22.
bxc4 {[%clk 0:01:13.5]} 22... Rf2 {[%clk 0:00:55.9]} 23. g3 {[%clk 0:01:04.4]}
23... Rxh2 {[%clk 0:00:52.3]} 24. a4 {[%clk 0:00:43.1]} 24... Bf2+ {[%clk
0:00:40.9]} 25. Kf1 {[%clk 0:00:35.5]} 25... Bxg3 {[%clk 0:00:38]} 26. Kg1
{[%clk 0:00:29.9]} 26... Rc2 {[%clk 0:00:31.6]} 27. Be3 {[%clk 0:00:26.3]} 27...
Rxc3 {[%clk 0:00:21.2]} 28. Bxa7 {[%clk 0:00:25.8]} 28... Rxc4 {[%clk
0:00:20.2]} 29. a5 {[%clk 0:00:24.4]} 29... Bf4 {[%clk 0:00:18.5]} 30. Rb1
{[%clk 0:00:19.4]} 30... Rc1+ {[%clk 0:00:17.6]} 31. Rxc1 {[%clk 0:00:19.1]}
31... Bxc1 {[%clk 0:00:18.5]} 32. Kf2 {[%clk 0:00:18.5]} 32... Bd2 {[%clk
0:00:17.8]} 33. Kg3 {[%clk 0:00:17.8]} 33... Bxa5 {[%clk 0:00:17.2]} 34. Kxg4
{[%clk 0:00:18.6]} 34... Bb4 {[%clk 0:00:16.4]} 35. Kf5 {[%clk 0:00:15.5]} 35...
Bc5 {[%clk 0:00:15.9]} 36. Bb8 {[%clk 0:00:14.6]} 36... b5 {[%clk 0:00:15.5]}
37. Ke4 {[%clk 0:00:14.8]} 37... Kh7 {[%clk 0:00:15.3]} 38. Bc7 {[%clk
0:00:14.1]} 38... Kg6 {[%clk 0:00:14.3]} 39. Bd8 {[%clk 0:00:15]} 39... Kf7
{[%clk 0:00:14.5]} 40. Kd5 {[%clk 0:00:15.5]} 40... b4 {[%clk 0:00:14.2]} 41.
Bg5 {[%clk 0:00:15.8]} 41... Kg6 {[%clk 0:00:13.4]} 42. Bc1 {[%clk 0:00:15.2]}
42... Kf5 {[%clk 0:00:13.6]} 43. Kc4 {[%clk 0:00:14.1]} 43... g5 {[%clk
0:00:13.4]} 0-1

[Event "Early-Titled-Tuesday-Blitz-February-20-2024"]
[Site "Chess.com"]
[Date "2024.02.20"]
[Round "9"]
[White "annamaja"]
[Black "mary-sanna"]
[Result "1-0"]
[WhiteElo "2395"]
[BlackElo "2165"]
[TimeControl "180+1"]
[EndTime "9:47:31 PST"]
[Termination "annamaja won by resignation"]

1. e4 {[%clk 0:03:00.9]} 1... c5 {[%clk 0:02:28]} 2. Nf3 {[%clk 0:03:00.7]} 2...
Nc6 {[%clk 0:02:28.2]} 3. Bb5 {[%clk 0:03:00]} 3... g6 {[%clk 0:02:27.7]} 4.
Bxc6 {[%clk 0:02:59.3]} 4... bxc6 {[%clk 0:02:27.2]} 5. O-O {[%clk 0:03:00.2]}
5... Bg7 {[%clk 0:02:27.1]} 6. Re1 {[%clk 0:03:00.7]} 6... Qc7 {[%clk
0:02:27.1]} 7. Nc3 {[%clk 0:03:00.9]} 7... d6 {[%clk 0:02:23.8]} 8. d3 {[%clk
0:03:01.3]} 8... Nf6 {[%clk 0:02:22.8]} 9. e5 {[%clk 0:03:01.5]} 9... Nd5 {[%clk
0:02:08.5]} 10. exd6 {[%clk 0:02:59.6]} 10... Qxd6 {[%clk 0:02:09.4]} 11. Ne4
{[%clk 0:02:59.7]} 11... Qc7 {[%clk 0:02:01.2]} 12. Nxc5 {[%clk 0:02:57]} 12...
O-O {[%clk 0:02:00.9]} 13. d4 {[%clk 0:02:54.9]} 13... Bg4 {[%clk 0:01:58.4]}
14. c3 {[%clk 0:02:53.9]} 14... Rfe8 {[%clk 0:01:29.2]} 15. Nd3 {[%clk
0:02:42.3]} 15... Rab8 {[%clk 0:01:22.2]} 16. h3 {[%clk 0:02:37.3]} 16... Bxf3
{[%clk 0:01:15.5]} 17. Qxf3 {[%clk 0:02:38.2]} 17... a5 {[%clk 0:01:06.9]} 18.
a4 {[%clk 0:02:36.4]} 18... Qb6 {[%clk 0:01:01.5]} 19. Bg5 {[%clk 0:02:28.7]}
19... e6 {[%clk 0:00:59.1]} 20. Bh4 {[%clk 0:02:28]} 20... Qb3 {[%clk
0:00:49.5]} 21. Bg3 {[%clk 0:02:24]} 21... Rb6 {[%clk 0:00:46.6]} 22. Ra3 {[%clk
0:02:03.3]} 22... Qc4 {[%clk 0:00:44.8]} 23. Be5 {[%clk 0:01:49.7]} 23... Qa6
{[%clk 0:00:35.4]} 24. Bxg7 {[%clk 0:01:41.2]} 24... Kxg7 {[%clk 0:00:36.3]} 25.
Ne5 {[%clk 0:01:40.3]} 25... Qb7 {[%clk 0:00:34.5]} 26. Nc4 {[%clk 0:01:37.9]}
26... Ra6 {[%clk 0:00:33.1]} 27. Nd6 {[%clk 0:01:37.6]} 27... Qb8 {[%clk
0:00:32.9]} 28. Nxe8+ {[%clk 0:01:34.5]} 28... Qxe8 {[%clk 0:00:33.8]} 29. Rb3
{[%clk 0:01:34.7]} 29... c5 {[%clk 0:00:28.4]} 30. dxc5 {[%clk 0:01:32]} 30...
Qxa4 {[%clk 0:00:27.9]} 31. Rb7 {[%clk 0:01:32.3]} 31... Nf6 {[%clk 0:00:27.3]}
32. Rb6 {[%clk 0:01:11.8]} 32... Ra7 {[%clk 0:00:25.7]} 33. Qd3 {[%clk
0:01:09.7]} 33... Rd7 {[%clk 0:00:22.8]} 34. Qb5 {[%clk 0:01:09.6]} 34... Qxb5
{[%clk 0:00:20.7]} 35. Rxb5 {[%clk 0:01:10.5]} 35... Nd5 {[%clk 0:00:20.3]} 36.
Rxa5 {[%clk 0:01:10]} 36... Rb7 {[%clk 0:00:19.7]} 37. Re2 {[%clk 0:01:08.4]}
37... Kf6 {[%clk 0:00:19.1]} 38. Ra6 {[%clk 0:01:06]} 38... Rc7 {[%clk
0:00:17.7]} 39. Rd2 {[%clk 0:00:58.8]} 39... Rxc5 {[%clk 0:00:17.3]} 40. b4
{[%clk 0:00:59.5]} 40... Rxc3 {[%clk 0:00:17]} 41. Rxd5 {[%clk 0:00:59.7]} 41...
Rc1+ {[%clk 0:00:15.7]} 42. Kh2 {[%clk 0:01:00.1]} 42... Rb1 {[%clk 0:00:15.7]}
43. Rb5 {[%clk 0:00:59.5]} 43... h5 {[%clk 0:00:13.8]} 44. Rb7 {[%clk 0:01:00]}
44... h4 {[%clk 0:00:12]} 45. f4 {[%clk 0:00:57]} 45... Rb2 {[%clk 0:00:11.2]}
46. Raa7 {[%clk 0:00:54.3]} 46... g5 {[%clk 0:00:11.5]} 47. Rxf7+ {[%clk
0:00:54.7]} 47... Kg6 {[%clk 0:00:11.8]} 48. Rg7+ {[%clk 0:00:53.5]} 48... Kf5
{[%clk 0:00:11.7]} 49. Rxg5+ {[%clk 0:00:51.6]} 49... Ke4 {[%clk 0:00:12.1]} 50.
b5 {[%clk 0:00:49.2]} 50... Kxf4 {[%clk 0:00:11.7]} 51. Rg4+ {[%clk 0:00:48.3]}
51... Ke3 {[%clk 0:00:11]} 52. Ra3+ {[%clk 0:00:43.2]} 52... Kf2 {[%clk
0:00:10.4]} 53. Rf3+ {[%clk 0:00:40.7]} 53... Ke1 {[%clk 0:00:09.8]} 54. Re4+
{[%clk 0:00:41.4]} 54... Kd1 {[%clk 0:00:09.8]} 55. Rf1+ {[%clk 0:00:41.3]}
55... Kd2 {[%clk 0:00:07.9]} 56. Rf2+ {[%clk 0:00:41.1]} 56... Kd3 {[%clk
0:00:08.6]} 57. Rxb2 {[%clk 0:00:41]} 57... Kxe4 {[%clk 0:00:09.5]} 58. b6
{[%clk 0:00:41.7]} 1-0

[Event "Early-Titled-Tuesday-Blitz-February-20-2024"]
[Site "Chess.com"]
[Date "2024.02.20"]
[Round "9"]
[White "CristianS27"]
[Black "NikitaShnadrygin"]
[Result "1-0"]
[WhiteElo "2565"]
[BlackElo "2685"]
[TimeControl "180+1"]
[EndTime "9:47:34 PST"]
[Termination "CristianS27 won on time"]

1. e4 {[%clk 0:03:00.9]} 1... c5 {[%clk 0:02:58.1]} 2. Nf3 {[%clk 0:03:00.9]}
2... e6 {[%clk 0:02:58.3]} 3. d4 {[%clk 0:03:01.4]} 3... cxd4 {[%clk 0:02:58.5]}
4. Nxd4 {[%clk 0:03:02.3]} 4... Nf6 {[%clk 0:02:59]} 5. Nc3 {[%clk 0:03:02.2]}
5... Nc6 {[%clk 0:02:58.7]} 6. Ndb5 {[%clk 0:03:02.8]} 6... Bb4 {[%clk
0:02:58.5]} 7. a3 {[%clk 0:03:03.4]} 7... Bxc3+ {[%clk 0:02:58.9]} 8. Nxc3
{[%clk 0:03:04.3]} 8... d5 {[%clk 0:02:59.6]} 9. exd5 {[%clk 0:03:05.2]} 9...
exd5 {[%clk 0:02:59.2]} 10. Bd3 {[%clk 0:03:05.7]} 10... O-O {[%clk 0:02:59.6]}
11. O-O {[%clk 0:03:06]} 11... Bg4 {[%clk 0:02:59.8]} 12. f3 {[%clk 0:03:06]}
12... Bh5 {[%clk 0:02:59.9]} 13. Bg5 {[%clk 0:03:06.7]} 13... Qb6+ {[%clk
0:02:59.7]} 14. Kh1 {[%clk 0:03:07.3]} 14... Ne4 {[%clk 0:02:59.3]} 15. Nxe4
{[%clk 0:03:07.8]} 15... dxe4 {[%clk 0:02:51.1]} 16. Bxe4 {[%clk 0:03:08.7]}
16... Qxb2 {[%clk 0:02:50.5]} 17. Rb1 {[%clk 0:03:09.4]} 17... Qxa3 {[%clk
0:02:50.1]} 18. Rxb7 {[%clk 0:03:10.3]} 18... Qa6 {[%clk 0:02:50.3]} 19. Rc7
{[%clk 0:03:06.5]} 19... Rac8 {[%clk 0:02:49.6]} 20. Rxc8 {[%clk 0:03:03.7]}
20... Rxc8 {[%clk 0:02:49]} 21. Qa1 {[%clk 0:03:02.1]} 21... Qb5 {[%clk
0:02:38.9]} 22. Be3 {[%clk 0:02:51.8]} 22... Bg6 {[%clk 0:02:19.9]} 23. Rb1
{[%clk 0:02:49.2]} 23... Qc4 {[%clk 0:02:17.6]} 24. Bxc6 {[%clk 0:01:30.3]}
24... Qxc6 {[%clk 0:02:15.5]} 25. Qxa7 {[%clk 0:01:29.5]} 25... Bxc2 {[%clk
0:02:14.6]} 26. Rc1 {[%clk 0:01:26.2]} 26... h6 {[%clk 0:02:13]} 27. Qd4 {[%clk
0:01:14.8]} 27... Qe6 {[%clk 0:01:36.4]} 28. h4 {[%clk 0:00:59.1]} 28... Rc4
{[%clk 0:01:30.3]} 29. Qd8+ {[%clk 0:00:48.5]} 29... Kh7 {[%clk 0:01:30.4]} 30.
Bf2 {[%clk 0:00:42.5]} 30... Qe2 {[%clk 0:01:25.6]} 31. Kg1 {[%clk 0:00:42.5]}
31... Rc6 {[%clk 0:00:36.7]} 32. Qd4 {[%clk 0:00:30.9]} 32... Qc4 {[%clk
0:00:11.8]} 33. Qe5 {[%clk 0:00:13.7]} 33... f6 {[%clk 0:00:08.5]} 34. Qe3
{[%clk 0:00:11.9]} 34... Qb5 {[%clk 0:00:06.1]} 35. Qd4 {[%clk 0:00:10.7]} 35...
Bg6 {[%clk 0:00:04.8]} 36. Re1 {[%clk 0:00:08.4]} 36... Rc7 {[%clk 0:00:03.7]}
37. Qd6 {[%clk 0:00:07.4]} 37... Rd7 {[%clk 0:00:02.5]} 38. Qf4 {[%clk
0:00:07.8]} 38... Qb6 {[%clk 0:00:01.2]} 39. Bxb6 {[%clk 0:00:07.2]} 1-0